bitfinex/quotes_SOLUSD_20230703
["timestamp","ask_amount","ask_price","bid_price","bid_amount"]
[1688399760003,21.882,19.331,19.318,32.73219922]
[1688399761194,55.0,19.33,19.318,32.73219922]
[1688399761500,76.883,19.33,19.318,32.73219922]
[1688399763200,76.883,19.33,19.318,21.895]
[1688399768620,76.883,19.33,19.315,21.899]
[1688399768621,108.723,19.33,19.315,21.899]
[1688399768914,181.061,19.325,19.315,21.899]
[1688399769101,78.253,19.322,19.315,21.899]
[1688399769509,21.895,19.32,19.315,21.899]
[1688399770913,21.895,19.32,19.314,21.9]
[1688399772209,21.895,19.32,19.313,21.902]
[1688399772405,21.895,19.32,19.31,56.394]
[1688399772406,55.0,19.319,19.308,159.307]
[1688399772609,21.899,19.316,19.313,21.901]
[1688399773918,26.83586274,19.346,19.313,21.901]
[1688399773919,102.817,19.326,19.313,21.901]
[1688399774112,21.895,19.319,19.313,21.901]
[1688399775313,21.895,19.319,19.31,31.66]
[1688399775512,21.895,19.319,19.307,102.912]
[1688399776312,21.895,19.319,19.311,21.903]
[1688399777807,55.0,19.318,19.311,21.903]
[1688399778007,21.898,19.317,19.311,21.903]
[1688399781926,55.0,19.316,19.311,21.903]
[1688399782228,21.9,19.315,19.311,21.903]
[1688399783125,56.364,19.321,19.311,21.903]
[1688399783429,21.897,19.318,19.311,21.903]
[1688399783806,55.0,19.317,19.311,21.903]
[1688399784006,21.899,19.316,19.311,21.903]
[1688399786509,21.897,19.318,19.311,21.903]
[1688399789716,21.897,19.318,19.31,31.79]
[1688399789917,21.897,19.318,19.3,31.75]
[1688399789918,75.0,19.317,19.3,31.75]
[1688399790121,21.903,19.312,19.305,21.911]
[1688399790323,21.903,19.312,19.301,56.419]
[1688399790532,21.903,19.312,19.304,21.911]
[1688399791028,55.0,19.311,19.3,31.75]
[1688399791221,21.908,19.308,19.302,21.914]
[1688399792238,21.908,19.308,19.301,21.915]
[1688399793629,21.908,19.308,19.3,53.666]
[1688399793825,55.0,19.307,19.3,53.666]
[1688399794025,21.911,19.305,19.3,53.666]
[1688399794333,21.911,19.305,19.3,21.916]
[1688399795518,21.911,19.305,19.298,21.918]
[1688399797427,102.902,19.31,19.298,21.918]
[1688399798536,55.0,19.309,19.298,21.918]
[1688399799137,21.911,19.305,19.298,21.918]
[1688399806845,21.911,19.305,19.298,78.348]
[1688399807133,56.397,19.31,19.298,78.348]
[1688399807341,21.91,19.307,19.298,78.348]
[1688399807721,21.907,19.309,19.298,78.348]
[1688399812746,21.907,19.309,19.298,21.918]
[1688399812946,55.0,19.308,19.293,188.5173]
[1688399813153,21.913,19.304,19.294,76.441]
[1688399813538,21.913,19.304,19.298,21.918]
[1688399813946,21.913,19.304,19.294,20.0]
[1688399814153,21.913,19.304,19.298,21.919]
[1688399815836,21.913,19.304,19.298,21.918]
[1688399816153,55.0,19.303,19.298,21.918]
[1688399816354,21.915,19.302,19.298,21.918]
[1688399818749,55.0,19.303,19.298,21.918]
[1688399818952,76.914,19.303,19.298,21.918]
[1688399820749,21.913,19.304,19.298,21.918]
[1688399825545,55.0,19.303,19.298,21.918]
[1688399825854,21.915,19.302,19.298,21.918]
[1688399826039,55.0,19.301,19.298,21.918]
[1688399827140,21.914,19.303,19.298,21.918]
[1688399827343,21.913,19.304,19.298,21.918]
[1688399828553,21.915,19.302,19.298,21.918]
[1688399828936,76.914,19.303,19.298,21.918]
[1688399829160,55.0,19.303,19.298,21.918]
[1688399829957,21.912,19.305,19.298,21.918]
[1688399832765,88.371,19.31,19.298,21.918]
[1688399833057,21.91,19.306,19.298,21.918]
[1688399840655,55.0,19.305,19.298,21.918]
[1688399840852,21.913,19.303,19.298,21.918]
[1688399843452,56.407,19.307,19.298,21.918]
[1688399844168,21.912,19.305,19.298,21.918]
[1688399844565,21.911,19.306,19.298,21.918]
[1688399854477,55.0,19.305,19.298,21.918]
[1688399854689,21.913,19.303,19.292,102.994]
[1688399854861,21.913,19.303,19.293,30.83719922]
[1688399855271,55.0,19.302,19.293,20.0]
[1688399855578,181.3,19.3,19.293,21.924]
[1688399855788,55.0,19.299,19.294,20.0]
[1688399855971,78.349,19.298,19.294,20.0]
[1688399856169,21.919,19.298,19.294,20.0]
[1688399856371,21.919,19.298,19.292,21.925]
[1688399856570,21.919,19.298,19.293,20.0]
[1688399856787,21.919,19.298,19.294,21.923]
[1688399857865,21.919,19.298,19.293,41.923]
[1688399858265,21.918,19.299,19.293,41.923]
[1688399858479,21.915,19.302,19.293,41.923]
[1688399861270,56.404,19.307,19.293,41.923]
[1688399861985,55.0,19.306,19.293,41.923]
[1688399862192,21.914,19.303,19.293,41.923]
[1688399862878,21.913,19.304,19.293,41.923]
[1688399871685,21.913,19.304,19.293,67.49388267]
[1688399873599,21.913,19.304,19.293,41.923]
[1688399878395,21.917,19.3,19.293,20.0]
[1688399878583,21.917,19.3,19.291,20.0]
[1688399879393,21.917,19.3,19.293,21.924]
[1688399879601,21.917,19.3,19.294,41.922]
[1688399879902,21.917,19.3,19.293,21.924]
[1688399880094,21.917,19.3,19.294,20.0]
[1688399880411,21.917,19.3,19.291,20.0]
[1688399880903,21.917,19.3,19.294,21.923]
[1688399882196,56.411,19.305,19.294,21.923]
[1688399882494,21.917,19.3,19.294,21.923]
[1688399883898,21.917,19.3,19.291,20.0]
[1688399884499,21.917,19.3,19.294,21.923]
[1688399891106,111.414,19.304,19.294,21.923]
[1688399891298,21.916,19.301,19.294,21.923]
[1688399891502,21.915,19.302,19.294,21.923]
[1688399891704,21.916,19.301,19.294,21.923]
[1688399892406,55.0,19.304,19.294,21.923]
[1688399892603,21.915,19.302,19.294,21.923]
[1688399893614,21.914,19.303,19.294,21.923]
[1688399896993,21.913,19.304,19.294,21.923]
[1688399906919,31.97,19.31,19.294,21.923]
[1688399907125,21.906,19.31,19.3,31.97]
[1688399907430,21.906,19.31,19.303,21.913]
[1688399918540,10.83719922,19.317,19.306,21.909]
[1688399918749,21.903,19.313,19.306,21.909]
[1688399919729,21.902,19.314,19.306,21.909]
[1688399922663,21.901,19.315,19.306,21.909]
[1688399923152,88.339,19.32,19.306,21.909]
[1688399923337,55.0,19.319,19.306,21.909]
[1688399923539,21.898,19.317,19.306,21.909]
[1688399924355,31.97,19.32,19.306,32.74619922]
[1688399924541,21.894,19.32,19.31,31.97]
[1688399924848,21.893,19.321,19.313,21.902]
[1688399925029,21.894,19.32,19.313,21.902]
[1688399934746,124.74,19.32,19.31,21.904]
[1688399935147,156.71,19.32,19.305,56.408]
[1688399935349,55.0,19.319,19.305,56.408]
[1688399935560,21.9,19.315,19.308,21.908]
[1688399936358,21.9,19.315,19.301,188.7556765]
[1688399936359,21.9,19.315,19.303,56.415]
[1688399936560,21.9,19.315,19.304,20.0]
[1688399938142,21.9,19.315,19.306,21.909]
[1688399943559,21.903,19.312,19.306,21.909]
[1688399945361,55.0,19.314,19.306,21.909]
[1688399945559,21.903,19.313,19.306,21.909]
[1688399945759,21.901,19.314,19.306,21.909]
[1688399950473,21.9,19.315,19.306,21.909]
[1688399950848,21.899,19.316,19.306,21.909]
[1688399951066,55.0,19.315,19.306,21.909]
[1688399951371,31.97,19.32,19.306,21.909]
[1688399951669,21.896,19.319,19.306,21.909]
[1688399952045,53.865,19.32,19.307,55.0]
[1688399952348,53.865,19.32,19.31,181.192]
[1688399953670,53.865,19.32,19.31,78.297]
[1688399954650,21.898,19.317,19.31,78.297]
[1688399956371,21.898,19.317,19.31,21.904]
[1688399964468,55.0,19.316,19.309,21.906]
[1688399964675,78.284,19.314,19.303,56.415]
[1688399964863,55.0,19.313,19.304,20.0]
[1688399965064,21.905,19.311,19.307,21.908]
[1688399966165,21.904,19.312,19.307,21.908]
[1688399966473,21.902,19.313,19.307,21.908]
[1688399967468,21.901,19.314,19.307,21.908]
[1688399968479,21.901,19.315,19.307,21.908]
[1688399972285,134.819,19.32,19.307,124.824]
[1688399972286,31.97,19.32,19.307,124.824]
[1688399972484,21.897,19.318,19.307,124.824]
[1688399974272,21.897,19.318,19.307,21.908]
[1688399974479,78.284,19.314,19.307,21.908]
[1688399975076,21.904,19.312,19.307,21.908]
[1688399977191,21.904,19.312,19.306,21.909]
[1688399984489,55.0,19.311,19.306,21.909]
[1688399984685,76.904,19.311,19.306,21.909]
[1688399985288,21.904,19.311,19.306,21.909]
[1688399985488,21.903,19.312,19.306,21.909]
[1688399986965,76.904,19.311,19.306,21.909]
[1688399987168,55.0,19.311,19.306,21.909]
[1688399987578,76.904,19.311,19.306,21.909]
[1688399988785,21.904,19.311,19.306,21.909]
[1688399990072,21.903,19.312,19.306,21.909]
[1688399990777,21.903,19.313,19.306,21.909]
[1688399993784,55.0,19.312,19.306,21.909]
[1688399993981,21.905,19.311,19.303,56.414]
[1688399994288,31.97,19.31,19.295,56.438]
[1688399994493,21.91,19.306,19.298,21.918]
[1688399994697,55.0,19.305,19.298,21.918]
[1688399994882,21.913,19.303,19.297,21.919]
[1688399999289,21.91,19.307,19.297,32.75619922]
[1688399999493,21.91,19.307,19.295,102.976]
[1688399999494,21.91,19.307,19.3,21.916]
[1688399999889,21.908,19.308,19.3,78.34]
[1688400000086,56.391,19.312,19.3,89.17719922]
[1688400000602,21.907,19.309,19.3,89.17719922]
[1688400001197,21.907,19.309,19.3,121.02719922]
[1688400001389,21.907,19.309,19.3,223.98019922]
[1688400001993,21.907,19.309,19.3,121.02719922]
[1688400004198,21.907,19.309,19.3,64.60319922]
[1688400005402,21.907,19.309,19.301,20.0]
[1688400005701,21.907,19.309,19.303,21.913]
[1688400005887,21.906,19.309,19.304,20.0]
[1688400006199,21.902,19.313,19.305,21.91]
[1688400007297,124.786,19.313,19.3,31.85]
[1688400007602,31.97,19.31,19.296,21.92]
[1688400007798,181.239,19.306,19.296,21.92]
[1688400007984,55.0,19.305,19.295,21.921]
[1688400008300,21.914,19.302,19.29,31.85]
[1688400008479,31.97,19.3,19.287,56.46]
[1688400008686,21.92,19.298,19.29,21.927]
[1688400009391,21.922,19.295,19.29,21.927]
[1688400009788,21.922,19.295,19.287,10.83719922]
[1688400010010,21.922,19.295,19.283,192.2791]
[1688400010200,21.922,19.295,19.285,56.466]
[1688400010404,55.0,19.301,19.284,10.83719922]
[1688400010585,56.425,19.3,19.289,78.386]
[1688400010786,55.0,19.299,19.289,78.386]
[1688400012090,21.92,19.297,19.289,78.386]
[1688400012406,55.0,19.299,19.289,78.386]
[1688400012703,21.92,19.297,19.289,78.386]
[1688400015697,56.423,19.301,19.289,78.386]
[1688400016612,21.92,19.298,19.289,78.386]
[1688400018498,21.919,19.299,19.289,78.386]
[1688400020621,56.426,19.3,19.285,92.1254]
[1688400020622,78.36,19.296,19.285,92.1254]
[1688400020805,181.338,19.296,19.285,92.1254]
[1688400020997,21.924,19.294,19.285,114.0584]
[1688400021198,21.924,19.294,19.285,21.933]
[1688400022811,159.388,19.299,19.285,21.933]
[1688400023013,21.923,19.295,19.285,21.933]
[1688400024111,21.923,19.295,19.285,32.77019922]
[1688400024497,21.922,19.296,19.285,32.77019922]
[1688400024812,55.0,19.298,19.286,10.83719922]
[1688400025020,21.921,19.297,19.289,78.383]
[1688400025708,21.919,19.299,19.289,78.383]
[1688400026105,56.416,19.303,19.289,78.383]
[1688400026305,21.918,19.3,19.289,78.383]
[1688400026499,21.916,19.301,19.289,89.22019922]
[1688400027195,124.864,19.301,19.289,21.928]
[1688400027393,124.864,19.301,19.289,21.929]
[1688400027911,21.922,19.296,19.285,21.933]
[1688400028301,21.924,19.294,19.285,21.933]
[1688400028501,55.0,19.293,19.285,21.933]
[1688400029292,55.0,19.294,19.285,21.933]
[1688400031406,76.924,19.294,19.285,21.933]
[1688400031808,55.0,19.294,19.285,21.933]
[1688400032417,76.924,19.294,19.285,21.933]
[1688400033106,55.0,19.294,19.285,21.933]
[1688400033821,55.0,19.295,19.285,21.933]
[1688400034019,76.922,19.295,19.285,21.933]
[1688400034914,21.926,19.292,19.285,21.933]
[1688400035119,21.929,19.29,19.284,21.934]
[1688400035313,21.929,19.29,19.281,21.937]
[1688400035512,21.932,19.287,19.281,21.937]
[1688400035818,76.933,19.286,19.274,103.09]
[1688400036017,55.0,19.285,19.276,56.494]
[1688400036194,56.451,19.291,19.281,21.938]
[1688400036702,21.932,19.287,19.281,21.938]
[1688400036904,55.0,19.286,19.281,21.938]
[1688400037104,21.934,19.285,19.281,21.938]
[1688400037604,55.0,19.286,19.281,21.938]
[1688400037909,21.935,19.284,19.281,21.938]
[1688400038414,21.934,19.285,19.281,21.938]
[1688400038607,21.934,19.285,19.28,21.938]
[1688400040199,21.934,19.285,19.277,10.83719922]
[1688400040399,55.0,19.292,19.277,10.83719922]
[1688400040400,21.937,19.283,19.279,21.939]
[1688400041215,21.935,19.285,19.279,21.939]
[1688400041420,21.936,19.283,19.279,21.939]
[1688400041715,56.461,19.288,19.279,21.939]
[1688400042021,21.934,19.285,19.279,21.939]
[1688400042315,21.934,19.285,19.279,21.94]
[1688400042316,55.0,19.284,19.279,21.94]
[1688400042533,55.0,19.287,19.279,21.94]
[1688400042821,21.935,19.285,19.279,21.94]
[1688400044826,21.934,19.285,19.279,21.94]
[1688400046229,56.455,19.29,19.279,21.94]
[1688400046524,21.932,19.287,19.279,21.94]
[1688400046733,21.932,19.287,19.273,103.096]
[1688400047019,21.932,19.287,19.274,20.0]
[1688400047213,21.932,19.287,19.279,21.94]
[1688400047421,56.461,19.292,19.279,21.94]
[1688400047724,21.931,19.288,19.279,21.94]
[1688400061127,55.0,19.287,19.276,21.943]
[1688400061330,78.407,19.284,19.276,21.943]
[1688400061634,78.407,19.284,19.275,21.944]
[1688400062321,55.0,19.283,19.272,97.3311]
[1688400062642,78.424,19.28,19.273,20.0]
[1688400062941,78.424,19.28,19.274,21.946]
[1688400063310,21.94,19.28,19.274,21.946]
[1688400063549,21.94,19.28,19.266,92.904]
[1688400063843,21.94,19.28,19.268,21.952]
[1688400064015,21.94,19.28,19.268,20.952]
[1688400067035,21.94,19.28,19.269,55.0]
[1688400067216,21.94,19.28,19.272,21.948]
[1688400068436,56.469,19.285,19.273,20.0]
[1688400068631,21.937,19.283,19.276,21.943]
[1688400072741,21.935,19.284,19.276,21.943]
[1688400073036,103.004,19.291,19.277,55.0]
[1688400073236,21.93,19.289,19.283,21.935]
[1688400075934,21.927,19.291,19.283,78.409]
[1688400076134,102.946,19.302,19.29,21.927]
[1688400076338,56.429,19.299,19.29,21.927]
[1688400076545,21.924,19.294,19.29,21.927]
[1688400076833,21.923,19.295,19.29,21.927]
[1688400077429,21.922,19.296,19.29,21.927]
[1688400082043,21.922,19.296,19.28,31.75]
[1688400082044,55.0,19.295,19.283,159.516]
[1688400082246,21.926,19.292,19.287,21.931]
[1688400084141,55.0,19.295,19.287,21.931]
[1688400085241,21.926,19.292,19.287,21.931]
[1688400086429,21.925,19.293,19.287,21.931]
[1688400086950,21.923,19.295,19.287,21.931]
[1688400089331,56.426,19.3,19.287,21.931]
[1688400089531,128.23681191,19.303,19.287,21.931]
[1688400089834,21.919,19.299,19.287,21.931]
[1688400090137,96.0986,19.306,19.287,21.931]
[1688400090138,56.414,19.304,19.287,21.931]
[1688400090452,21.918,19.3,19.287,21.931]
[1688400091235,21.916,19.301,19.287,21.931]
[1688400091543,21.915,19.302,19.292,181.366]
[1688400095070,56.405,19.307,19.292,181.366]
[1688400095241,21.914,19.303,19.293,20.0]
[1688400095546,21.914,19.303,19.296,78.357]
[1688400096345,21.913,19.304,19.296,78.357]
[1688400100358,102.906,19.309,19.296,78.357]
[1688400100535,21.912,19.305,19.296,78.357]
[1688400105736,21.912,19.305,19.296,21.921]
[1688400106356,20.0,19.304,19.29,32.0]
[1688400106651,21.917,19.3,19.295,21.922]
[1688400106955,21.917,19.3,19.294,21.922]
[1688400108847,21.917,19.3,19.29,56.452]
[1688400109051,55.0,19.299,19.29,56.452]
[1688400109249,21.92,19.297,19.294,21.923]
[1688400109456,56.416,19.304,19.294,21.923]
[1688400109652,21.915,19.301,19.294,21.923]
[1688400110952,56.407,19.306,19.294,21.923]
[1688400111252,21.915,19.302,19.294,21.923]
[1688400111451,56.407,19.306,19.294,21.923]
[1688400111664,25.38162236,19.313,19.294,21.923]
[1688400111844,21.91,19.306,19.294,21.923]
[1688400112158,21.91,19.306,19.298,78.348]
[1688400114264,21.91,19.306,19.298,21.919]
[1688400116749,56.397,19.31,19.298,21.919]
[1688400116948,21.909,19.307,19.298,21.919]
[1688400118852,55.0,19.306,19.298,21.919]
[1688400119052,21.913,19.304,19.298,21.919]
[1688400119257,21.912,19.305,19.298,21.919]
[1688400124473,75.0,19.304,19.289,56.456]
[1688400124677,78.343,19.3,19.292,21.925]
[1688400124856,55.0,19.299,19.291,21.926]
[1688400125169,21.92,19.297,19.29,21.927]
[1688400129778,78.56212492,19.308,19.29,78.381]
[1688400129779,159.356,19.303,19.29,78.381]
[1688400129957,21.918,19.3,19.29,78.381]
[1688400130158,21.916,19.301,19.29,78.381]
[1688400139758,21.916,19.301,19.29,21.927]
[1688400149699,21.916,19.301,19.29,53.847]
[1688400149898,31.76,19.3,19.289,21.929]
[1688400150084,21.92,19.297,19.29,21.928]
[1688400151875,21.92,19.297,19.29,53.848]
[1688400152076,21.92,19.298,19.29,53.848]
[1688400152392,56.426,19.3,19.29,53.848]
[1688400153080,21.92,19.297,19.29,53.848]
[1688400153275,56.423,19.301,19.29,53.848]
[1688400153482,56.41,19.305,19.294,78.365]
[1688400153684,21.915,19.302,19.294,21.923]
[1688400154085,21.914,19.303,19.294,21.923]
[1688400154392,21.912,19.305,19.294,21.923]
[1688400154586,21.908,19.308,19.299,78.343]
[1688400155005,102.88,19.314,19.299,78.343]
[1688400155006,56.388,19.313,19.3,31.99]
[1688400155180,21.908,19.308,19.303,21.912]
[1688400156295,21.907,19.309,19.303,21.912]
[1688400159193,39.40867172,19.316,19.303,21.912]
[1688400159392,21.903,19.313,19.303,21.912]
[1688400160206,21.903,19.313,19.302,21.913]
[1688400160409,55.0,19.312,19.302,21.914]
[1688400160604,21.906,19.309,19.302,21.914]
[1688400161103,21.906,19.309,19.301,21.915]
[1688400161706,21.906,19.309,19.296,56.434]
[1688400161886,21.906,19.309,19.293,56.444]
[1688400162086,21.906,19.309,19.294,20.0]
[1688400163011,21.906,19.309,19.295,55.0]
[1688400163305,21.906,19.309,19.297,21.919]
[1688400163487,21.911,19.305,19.297,21.919]
[1688400163683,21.911,19.306,19.297,21.919]
[1688400165304,21.909,19.307,19.297,21.919]
[1688400165814,55.0,19.306,19.296,21.921]
[1688400166114,78.329,19.303,19.28,159.6]
[1688400166317,31.96,19.3,19.286,61.88727373]
[1688400166494,21.921,19.296,19.288,21.929]
[1688400166693,21.921,19.297,19.288,21.929]
[1688400168493,21.92,19.298,19.288,21.929]
[1688400170302,56.415,19.304,19.288,21.929]
[1688400170501,75.0,19.303,19.288,21.929]
[1688400171114,21.919,19.298,19.288,21.929]
[1688400172010,21.919,19.299,19.288,21.929]
[1688400172397,21.917,19.3,19.288,78.388]
[1688400172814,55.0,19.299,19.288,78.388]
[1688400173111,21.92,19.298,19.288,78.388]
[1688400173506,55.0,19.299,19.288,78.388]
[1688400173507,20.0,19.303,19.288,78.388]
[1688400173708,20.0,19.303,19.288,173.3103]
[1688400173913,56.415,19.304,19.288,173.3103]
[1688400174112,75.0,19.303,19.289,55.0]
[1688400174416,21.917,19.3,19.293,21.924]
[1688400176209,21.917,19.3,19.288,94.9223]
[1688400176415,55.0,19.299,19.288,94.9223]
[1688400176710,21.921,19.296,19.291,21.927]
[1688400178413,21.921,19.296,19.285,56.466]
[1688400178619,21.923,19.294,19.289,21.928]
[1688400178812,21.923,19.295,19.289,21.928]
[1688400178994,55.0,19.299,19.289,21.928]
[1688400179200,21.919,19.298,19.289,78.385]
[1688400179721,21.917,19.3,19.289,181.397]
[1688400181012,76.418,19.303,19.289,181.397]
[1688400181214,21.918,19.3,19.289,181.397]
[1688400181606,21.916,19.301,19.289,181.397]
[1688400183120,21.915,19.302,19.289,181.397]
[1688400183303,21.914,19.303,19.295,78.361]
[1688400183908,21.913,19.304,19.295,78.361]
[1688400187108,114.3498391,19.316,19.296,55.0]
[1688400187311,21.905,19.311,19.301,181.28]
[1688400187513,21.905,19.311,19.301,78.335]
[1688400187918,31.96,19.31,19.301,21.915]
[1688400188223,21.908,19.308,19.301,21.915]
[1688400188623,55.0,19.307,19.295,56.438]
[1688400188824,21.913,19.304,19.296,56.434]
[1688400189023,21.913,19.304,19.298,21.918]
[1688400190730,21.911,19.306,19.298,21.918]
[1688400190917,55.0,19.305,19.298,21.918]
[1688400191228,76.911,19.305,19.298,21.918]
[1688400191727,21.91,19.306,19.298,21.918]
[1688400191913,21.911,19.305,19.298,21.918]
[1688400192228,56.399,19.309,19.298,21.918]
[1688400192436,55.0,19.308,19.298,21.918]
[1688400192929,21.911,19.306,19.298,21.918]
[1688400193831,56.392,19.312,19.298,21.918]
[1688400194424,20.0,19.313,19.298,21.918]
[1688400195028,21.906,19.31,19.299,55.0]
[1688400195233,21.906,19.31,19.302,78.332]
[1688400195731,21.905,19.311,19.302,78.332]
[1688400195933,21.906,19.31,19.302,78.332]
[1688400196236,21.906,19.31,19.302,21.914]
[1688400198326,124.806,19.31,19.296,56.435]
[1688400198529,21.911,19.306,19.299,21.917]
[1688400198834,21.911,19.306,19.296,56.435]
[1688400198835,21.911,19.306,19.294,56.442]
[1688400199423,21.911,19.306,19.298,21.919]
[1688400203648,55.0,19.305,19.298,21.919]
[1688400203857,56.398,19.309,19.298,21.919]
[1688400204063,55.0,19.308,19.298,21.919]
[1688400204972,21.911,19.306,19.298,21.919]
[1688400206961,21.909,19.307,19.298,21.919]
[1688400207560,55.0,19.306,19.298,21.919]
[1688400207756,21.912,19.305,19.298,21.919]
[1688400214976,55.0,19.304,19.298,21.919]
[1688400215280,21.914,19.303,19.298,21.919]
[1688400215666,21.914,19.303,19.297,21.92]
[1688400215866,21.914,19.303,19.293,56.444]
[1688400215867,55.0,19.302,19.298,21.918]
[1688400216176,76.915,19.302,19.298,21.918]
[1688400216376,21.914,19.303,19.298,21.918]
[1688400223384,21.912,19.304,19.298,21.918]
[1688400223888,21.912,19.304,19.297,21.92]
[1688400224682,21.912,19.304,19.296,21.92]
[1688400225182,21.916,19.301,19.296,21.92]
[1688400230594,21.915,19.302,19.296,21.92]
[1688400232093,21.915,19.302,19.292,56.447]
[1688400232391,31.99,19.3,19.292,56.447]
[1688400232598,76.918,19.299,19.294,21.922]
[1688400234291,76.918,19.299,19.293,21.924]
[1688400234884,76.918,19.299,19.286,99.4748]
[1688400235077,76.918,19.299,19.289,21.929]
[1688400237794,76.918,19.299,19.286,99.4748]
[1688400238695,76.918,19.299,19.287,21.931]
[1688400241082,76.918,19.299,19.286,21.932]
[1688400241279,76.918,19.299,19.28,183.5446]
[1688400241480,31.99,19.29,19.281,21.937]
[1688400241681,21.931,19.288,19.281,21.937]
[1688400241994,55.0,19.287,19.277,21.943]
[1688400242206,21.935,19.284,19.278,21.941]
[1688400242502,21.938,19.282,19.278,21.941]
[1688400242788,21.938,19.282,19.274,156.3741]
[1688400242975,21.938,19.282,19.277,21.943]
[1688400243594,55.0,19.281,19.277,21.943]
[1688400243781,21.94,19.28,19.277,21.943]
[1688400244308,21.937,19.283,19.277,21.943]
[1688400244990,31.99,19.29,19.277,21.943]
[1688400245195,55.0,19.289,19.277,21.943]
[1688400245498,21.935,19.284,19.277,21.943]
[1688400250787,78.406,19.284,19.275,21.945]
[1688400250987,55.0,19.283,19.275,21.945]
[1688400251196,21.939,19.281,19.275,21.945]
[1688400255902,21.938,19.282,19.275,21.945]
[1688400258423,21.938,19.282,19.27,31.99]
[1688400258700,31.99,19.29,19.269,56.514]
[1688400258701,78.436,19.277,19.269,21.951]
[1688400259107,78.436,19.277,19.268,21.952]
[1688400259108,55.0,19.276,19.268,21.952]
[1688400259291,21.947,19.274,19.267,21.953]
[1688400259609,21.949,19.272,19.267,21.953]
[1688400264914,21.949,19.272,19.263,92.5106]